bitfinex/quotes_BTCUSD_20220226
["timestamp","ask_amount","ask_price","bid_price","bid_amount"]
[1645844071002,0.08771519,39616.0,39612.0,0.3807395]
[1645844072200,0.109354,39623.0,39621.0,0.15616859]
[1645844072201,0.22350936,39622.0,39621.0,0.15616859]
[1645844072405,0.27410936,39622.0,39621.0,0.15616859]
[1645844072600,0.27935897,39622.0,39621.0,0.15616859]
[1645844072801,1.04905897,39622.0,39621.0,0.15616859]
[1645844074241,1.09905897,39622.0,39621.0,0.15616859]
[1645844079497,1.10005897,39622.0,39621.0,0.15616859]
[1645844079707,1.11372909,39622.0,39621.0,0.15616859]
[1645844080099,1.11372909,39622.0,39620.0,0.00039144]
[1645844080100,1.8197,39621.0,39620.0,0.00039144]
[1645844080300,1.94347,39621.0,39620.0,0.00039144]
[1645844080502,2.11947861,39621.0,39612.0,0.3807395]
[1645844080702,0.81953538,39615.0,39612.0,0.3807395]
[1645844080900,0.76953538,39613.0,39612.0,0.3807395]
[1645844081098,0.87013538,39613.0,39612.0,0.3807395]
[1645844083350,0.87113538,39613.0,39612.0,0.3807395]
[1645844084552,0.87013538,39613.0,39612.0,0.3807395]
[1645844084751,0.1006,39613.0,39612.0,0.3807395]
[1645844084956,0.0506,39613.0,39612.0,0.3807395]
[1645844086493,0.8203,39613.0,39612.0,0.3807395]
[1645844087497,0.8213,39613.0,39612.0,0.3807395]
[1645844088595,0.88347,39613.0,39612.0,0.3807395]
[1645844088995,1.05424176,39613.0,39612.0,0.3807395]
[1645844089244,0.88347,39613.0,39612.0,0.3807395]
[1645844089648,1.05424176,39613.0,39612.0,0.3807395]
[1645844090148,1.05424176,39613.0,39612.0,0.38090643]
[1645844091346,1.05524176,39613.0,39612.0,0.38090643]
[1645844092347,1.10524176,39613.0,39612.0,0.38090643]
[1645844092754,1.10424176,39613.0,39612.0,0.38090643]
[1645844093998,1.10424176,39613.0,39612.0,0.37590643]
[1645844094400,0.33454176,39613.0,39612.0,0.37590643]
[1645844094698,1.10424176,39613.0,39612.0,0.37590643]
[1645844094998,1.10424176,39613.0,39612.0,0.37607336]
[1645844095503,1.10524176,39613.0,39612.0,0.37607336]
[1645844095699,1.17156176,39613.0,39612.0,0.37607336]
[1645844096099,0.05264894,39611.0,39609.0,0.0413048]
[1645844096302,0.8203,39610.0,39609.0,0.0413048]
[1645844096744,0.99107176,39610.0,39609.0,0.0413048]
[1645844098347,0.99107176,39610.0,39609.0,0.0408495]
[1645844098547,1.8197,39609.0,39608.0,0.00039114]
[1645844098748,0.7697,39606.0,39601.0,0.0111]
[1645844098948,0.8203,39605.0,39602.0,0.00156478]
[1645844099147,1.0388075,39604.0,39602.0,0.00156478]
[1645844099348,0.8203,39603.0,39602.0,0.00156478]
[1645844099748,0.0506,39603.0,39601.0,0.0111]
[1645844099947,0.8203,39603.0,39601.0,0.0111]
[1645844101300,0.99109712,39603.0,39601.0,0.0111]
[1645844101504,0.99109712,39603.0,39599.0,0.001]
[1645844101505,1.05,39602.0,39599.0,5.9e-07]
[1645844101701,1.05,39602.0,39596.0,0.21276667]
[1645844101702,1.26155316,39601.0,39596.0,0.21276667]
[1645844101903,0.7697,39599.0,39594.0,0.00256259]
[1645844102099,0.7697,39597.0,39591.0,0.0111]
[1645844102300,0.7697,39595.0,39591.0,0.0111]
[1645844102502,0.2371614,39593.0,39591.0,0.0001]
[1645844102700,1.19836416,39592.0,39591.0,0.0001]
[1645844102900,0.8203,39592.0,39591.0,0.0001]
[1645844103100,1.37872328,39592.0,39591.0,0.0001]
[1645844103301,1.00065912,39592.0,39591.0,0.0001]
[1645844103702,0.0506,39592.0,39591.0,0.0001]
[1645844109408,0.0516,39592.0,39591.0,0.0001]
[1645844110909,0.0506,39592.0,39591.0,0.0001]
[1645844115256,0.0003906,39596.0,39591.0,0.0001]
[1645844115510,0.063181,39606.0,39593.0,0.1]
[1645844115511,0.001,39597.0,39593.0,0.1]
[1645844115708,0.001,39597.0,39595.0,0.1]
[1645844115909,0.0003906,39596.0,39595.0,0.12521]
[1645844116710,0.009466,39610.0,39596.0,0.00028789]
[1645844116910,0.009466,39610.0,39601.0,0.1]
[1645844117110,0.05264894,39611.0,39599.0,0.02521]
[1645844118114,0.00039053,39607.0,39603.0,0.02521]
[1645844118317,0.00039053,39607.0,39605.0,0.02521]
[1645844118813,0.00039053,39607.0,39605.0,0.12521]
[1645844119016,0.05264894,39611.0,39605.0,0.12521]
[1645844119455,0.19831771,39607.0,39605.0,0.12521]
[1645844120056,0.19831771,39607.0,39605.0,0.02521]
[1645844121059,0.19831771,39607.0,39601.0,0.12521]
[1645844121257,0.19831771,39607.0,39597.0,0.2162]
[1645844121460,0.20031771,39607.0,39597.0,0.2162]
[1645844121858,0.00039054,39606.0,39597.0,0.2162]
[1645844122059,0.00039054,39606.0,39598.0,0.02521]
[1645844122661,0.19831771,39607.0,39598.0,0.02521]
[1645844123006,0.00039055,39604.0,39600.0,0.1]
[1645844123205,0.00039055,39604.0,39602.0,0.1]
[1645844123405,0.00029232,39604.0,39602.0,0.1]
[1645844123807,0.19831771,39607.0,39598.0,0.02721]
[1645844124006,0.19831771,39607.0,39600.0,0.1]
[1645844124806,0.19831771,39607.0,39600.0,0.12521]
[1645844125007,0.19331771,39607.0,39600.0,0.1]
[1645844125508,0.19631771,39607.0,39600.0,0.1]
[1645844125706,0.003,39607.0,39600.0,0.1]
[1645844126760,0.18330532,39609.0,39600.0,0.1]
[1645844127556,0.18330532,39609.0,39600.0,0.001]
[1645844127756,0.00039053,39606.0,39600.0,0.101]
[1645844127956,0.00039053,39606.0,39600.0,0.001]
[1645844128558,0.18330532,39609.0,39600.0,0.001]
[1645844128757,0.18330532,39609.0,39598.0,0.23833292]
[1645844128958,0.00039054,39605.0,39598.0,0.23833292]
[1645844129656,0.00139054,39605.0,39599.0,0.1]
[1645844129857,0.001,39605.0,39599.0,0.1]
[1645844130259,0.00039055,39603.0,39599.0,0.1]
[1645844130700,0.00039055,39603.0,39602.0,0.02521]
[1645844131101,0.05264894,39611.0,39602.0,0.02521]
[1645844131503,0.002,39608.0,39602.0,0.02521]
[1645844131709,0.002,39608.0,39606.0,0.02521]
[1645844131910,0.002,39608.0,39607.0,0.12521]
[1645844132700,0.00011868,39609.0,39607.0,0.12521]
[1645844132904,0.00011868,39609.0,39608.0,0.02521]
[1645844133602,0.05264894,39611.0,39608.0,0.02621]
[1645844133805,0.00036807,39610.0,39608.0,0.02621]
[1645844134253,0.001,39614.0,39610.0,0.02521]
[1645844134756,0.59104942,39622.0,39610.0,0.02521]
[1645844134956,0.2624804,39622.0,39609.0,0.75853785]
[1645844135155,0.2124804,39622.0,39609.0,0.75853785]
[1645844135357,0.1929984,39617.0,39609.0,0.75853785]
[1645844137559,0.1949984,39617.0,39609.0,0.75853785]
[1645844138302,0.002,39617.0,39610.0,0.02521]
[1645844138496,0.002,39617.0,39611.0,0.12521]
[1645844138696,0.00039108,39615.0,39611.0,0.1]
[1645844138897,0.00039108,39615.0,39609.0,0.75853785]
[1645844139600,0.001,39615.0,39609.0,0.75853785]
[1645844139796,0.00039109,39614.0,39609.0,0.75853785]
[1645844140498,0.00039109,39614.0,39609.0,0.65853785]
[1645844140704,0.001,39615.0,39604.0,0.002]
[1645844141198,0.00039109,39613.0,39604.0,0.002]
[1645844141402,0.20017801,39607.0,39604.0,0.002]
[1645844142852,0.20017801,39607.0,39599.0,0.1]
[1645844143053,0.20017801,39607.0,39597.0,0.1]
[1645844143252,0.20017801,39607.0,39597.0,0.00039123]
[1645844143452,0.20117801,39607.0,39597.0,0.00039123]
[1645844144253,0.20117801,39607.0,39596.0,0.10028789]
[1645844144452,0.20117801,39607.0,39597.0,0.00039122]
[1645844144856,0.20017801,39607.0,39597.0,0.00039122]
[1645844145502,0.20117801,39607.0,39596.0,0.00017534]
[1645844145706,0.20117801,39607.0,39597.0,0.00039122]
[1645844146101,0.20117801,39607.0,39597.0,0.21348791]
[1645844146703,0.20117801,39607.0,39597.0,0.21309669]
[1645844146902,0.20117801,39607.0,39597.0,0.21348791]
[1645844147408,0.20017801,39607.0,39597.0,0.21348791]
[1645844147602,0.20017801,39607.0,39597.0,0.21448791]
[1645844147803,0.20017801,39607.0,39597.0,0.23969791]
[1645844148006,0.20017801,39607.0,39597.0,0.23930669]
[1645844148304,0.20017801,39607.0,39597.0,0.02660122]
[1645844148704,0.20017801,39607.0,39597.0,0.02560122]
[1645844148905,0.20017801,39607.0,39597.0,0.23869791]
[1645844149106,0.20017801,39607.0,39598.0,0.21309669]
[1645844149554,0.20017801,39607.0,39597.0,0.02560122]
[1645844149555,0.20117801,39607.0,39597.0,0.02560122]
[1645844149857,0.20117801,39607.0,39597.0,0.23869791]
[1645844150254,0.20117801,39607.0,39597.0,0.23830669]
[1645844150654,0.20117801,39607.0,39597.0,0.23869791]
[1645844150854,0.20017801,39607.0,39597.0,0.02560122]
[1645844151256,0.20017801,39607.0,39597.0,0.00039122]
[1645844151555,0.20117801,39607.0,39596.0,0.02538534]
[1645844151755,0.20117801,39607.0,39597.0,0.00039122]
[1645844152757,0.20117801,39607.0,39596.0,0.00017534]
[1645844153002,0.20017801,39607.0,39597.0,0.00039122]
[1645844153902,0.20017801,39607.0,39596.0,0.00317534]
[1645844154102,0.20017801,39607.0,39597.0,0.00039122]
[1645844155107,0.20017801,39607.0,39596.0,0.00017534]
[1645844155303,0.20017801,39607.0,39597.0,0.00039122]
[1645844155506,0.20117801,39607.0,39597.0,0.00039122]
[1645844156105,0.20117801,39607.0,39598.0,0.21321347]
[1645844156306,0.20117801,39607.0,39599.0,0.21321347]
[1645844156507,0.20117801,39607.0,39598.0,0.21321347]
[1645844156747,0.20017801,39607.0,39598.0,0.21321347]
[1645844157757,0.20017801,39607.0,39599.0,0.21321347]
[1645844158352,0.20017801,39607.0,39601.0,0.21321347]
[1645844159153,0.20017801,39607.0,39602.0,0.21321347]
[1645844159554,0.20217801,39607.0,39603.0,0.21321347]
[1645844159755,0.20217801,39607.0,39602.0,0.21321347]
[1645844160598,0.20217801,39607.0,39604.0,0.21321347]
[1645844160799,0.00992109,39612.0,39604.0,0.21321347]
[1645844161000,0.00039109,39612.0,39606.0,0.21321347]
[1645844161199,0.2614,39613.0,39606.0,0.21321347]
[1645844161600,0.00339109,39612.0,39607.0,0.21321347]
[1645844162400,0.003,39612.0,39607.0,0.21321347]
[1645844162601,0.0033911,39612.0,39607.0,0.21321347]
[1645844162801,0.0003911,39612.0,39607.0,0.21321347]
[1645844163702,0.003,39612.0,39607.0,0.21321347]
[1645844163902,0.0033911,39612.0,39607.0,0.21321347]
[1645844164357,0.0033911,39612.0,39608.0,0.21333906]
[1645844164554,0.0033911,39612.0,39607.0,0.21334197]
[1645844164754,0.003,39612.0,39607.0,0.21334197]
[1645844164955,0.2016851,39613.0,39607.0,0.21334016]
[1645844165154,0.00036584,39612.0,39607.0,0.21334016]
[1645844165354,0.00029801,39612.0,39605.0,0.26601348]
[1645844165557,0.00029801,39612.0,39607.0,0.21333503]
[1645844166055,0.2036851,39613.0,39607.0,0.21333503]
[1645844166255,0.18328679,39613.0,39607.0,0.21333503]
[1645844166455,0.18328679,39613.0,39608.0,0.21333503]
[1645844166855,0.18128679,39613.0,39608.0,0.21333503]
[1645844167155,0.18128679,39613.0,39607.0,0.21333503]
[1645844167354,0.18128679,39613.0,39606.0,0.21333503]
[1645844167555,0.23328679,39613.0,39605.0,0.21333503]
[1645844168204,0.23328679,39613.0,39606.0,0.21333503]
[1645844168402,0.23328679,39613.0,39607.0,0.21333503]
[1645844168900,0.23167788,39613.0,39607.0,0.21333503]
[1645844169502,0.23128679,39613.0,39607.0,0.21333503]
[1645844170000,0.23167788,39613.0,39607.0,0.21333503]
[1645844170807,0.23128679,39613.0,39607.0,0.21333503]
[1645844171204,0.23167788,39613.0,39607.0,0.21333503]
[1645844172051,0.23128679,39613.0,39607.0,0.21333503]
[1645844172351,0.23167788,39613.0,39607.0,0.21333503]
[1645844173152,0.23128679,39613.0,39607.0,0.21333503]
[1645844173553,0.23167788,39613.0,39607.0,0.21333503]
[1645844174355,0.23128679,39613.0,39607.0,0.21333503]
[1645844174755,0.23167788,39613.0,39607.0,0.21333503]
[1645844174955,0.23167788,39613.0,39606.0,0.21333503]
[1645844175606,0.23428679,39613.0,39606.0,0.21333503]
[1645844175915,0.23467788,39613.0,39606.0,0.21333503]
[1645844176513,0.20615486,39607.0,39605.0,0.21333503]
[1645844177608,0.20915486,39607.0,39605.0,0.21333503]
[1645844178907,0.20615486,39607.0,39605.0,0.21333503]
[1645844183102,0.20615486,39607.0,39604.0,0.21333503]
[1645844183503,0.20615486,39607.0,39605.0,0.21333503]
[1645844183707,0.20815486,39607.0,39604.0,0.21333503]
[1645844184104,0.002,39607.0,39606.0,0.21333503]
[1645844184907,0.26318395,39613.0,39606.0,0.21333503]
[1645844185106,0.23966435,39609.0,39606.0,0.21333503]
[1645844185706,0.33966435,39609.0,39606.0,0.21333503]
[1645844186006,0.33966435,39609.0,39604.0,0.21333503]
[1645844186007,0.23966435,39609.0,39604.0,0.21333503]
[1645844186215,0.37132524,39608.0,39604.0,0.21333503]
[1645844186410,0.0506,39607.0,39603.0,0.21333503]
[1645844186607,0.0506,39607.0,39602.0,0.21333503]
[1645844188052,0.0506,39607.0,39601.0,0.21333503]
[1645844188653,0.0506,39607.0,39602.0,0.21333503]
[1645844189653,0.0526,39607.0,39603.0,0.21333503]
[1645844189852,0.0526,39607.0,39602.0,0.21333503]
[1645844190052,0.0526,39607.0,39601.0,0.21333503]
[1645844190508,0.0526,39607.0,39600.0,0.21333503]
[1645844190907,0.0506,39607.0,39601.0,0.21333503]
[1645844191107,0.0506,39607.0,39600.0,0.21333503]
[1645844191307,0.0506,39607.0,39601.0,0.21333503]
[1645844191706,0.0536,39607.0,39601.0,0.21333503]
[1645844192707,0.0536,39607.0,39600.0,0.21333503]
[1645844192908,0.0506,39607.0,39601.0,0.21333503]
[1645844193307,0.0506,39607.0,39602.0,0.21333503]
[1645844193508,0.0506,39607.0,39601.0,0.21333503]
[1645844194112,0.31281871,39609.0,39601.0,0.21333503]
[1645844194356,0.1,39609.0,39602.0,0.21333503]
[1645844194552,0.04932332,39609.0,39602.0,0.21333503]
[1645844194752,0.26281871,39610.0,39602.0,0.21333503]
[1645844195353,0.21281871,39610.0,39602.0,0.21333503]
[1645844195553,0.18043308,39611.0,39605.0,0.21333503]
[1645844195554,0.17079308,39611.0,39605.0,0.21333503]
[1645844195752,0.2708,39612.0,39605.0,0.21333503]
[1645844196352,0.2708,39612.0,39603.0,0.26601348]
[1645844196553,0.2708,39612.0,39605.0,0.21336556]
[1645844196758,0.2708,39612.0,39605.0,0.21336527]
[1645844196954,0.2708,39612.0,39605.0,0.21336518]
[1645844197153,0.2708,39612.0,39603.0,0.26601348]
[1645844197355,0.2708,39612.0,39605.0,0.21336646]
[1645844197554,0.3208,39612.0,39603.0,0.26601348]
[1645844197754,0.3208,39612.0,39605.0,0.21336518]
[1645844197997,0.2708,39612.0,39605.0,0.21336524]
[1645844198198,0.21321294,39613.0,39603.0,0.26601348]
[1645844198402,0.21284697,39614.0,39604.0,0.26601348]
[1645844198599,0.00036597,39613.0,39608.0,0.21335401]
[1645844198800,0.00030597,39613.0,39608.0,0.21335378]
[1645844199600,0.003,39613.0,39608.0,0.21335378]
[1645844200800,0.18637078,39615.0,39608.0,0.21335378]
[1645844201002,0.21286063,39614.0,39606.0,0.21335378]
[1645844201600,0.21486063,39614.0,39606.0,0.21335378]
[1645844201849,0.21486063,39614.0,39605.0,0.21335378]
[1645844202053,0.21286063,39613.0,39605.0,0.21335378]
[1645844203252,0.21286063,39614.0,39606.0,0.21335378]
[1645844203453,0.21325189,39614.0,39606.0,0.21335378]
[1645844204453,0.21286063,39614.0,39606.0,0.21335378]
[1645844204657,0.21325189,39614.0,39606.0,0.21335378]
[1645844204854,0.00039126,39614.0,39607.0,0.21335378]
[1645844205699,0.003,39614.0,39607.0,0.21335378]
[1645844205900,0.00339126,39614.0,39607.0,0.21335378]
[1645844206101,0.39762267,39615.0,39607.0,0.21335378]
[1645844206801,0.18476204,39615.0,39608.0,0.21335378]
[1645844207401,0.18476204,39615.0,39608.0,0.21328019]
[1645844207702,0.002,39615.0,39608.0,0.21328019]
[1645844208704,0.002,39615.0,39605.0,0.26640514]
[1645844208901,0.63457742,39616.0,39605.0,0.26640514]
[1645844209102,0.26325218,39616.0,39605.0,0.26640514]
[1645844209352,0.26286063,39616.0,39605.0,0.26640514]
[1645844209650,0.24465665,39616.0,39605.0,0.26640514]
[1645844210447,0.2442651,39616.0,39605.0,0.26601348]
[1645844210648,0.24465665,39616.0,39605.0,0.26640514]
[1645844210847,0.21537894,39613.0,39605.0,0.26640514]
[1645844211450,0.40312126,39616.0,39605.0,0.26640514]
[1645844211651,0.40272971,39616.0,39605.0,0.26601348]
[1645844211848,0.03179601,39616.0,39605.0,0.26640514]
[1645844212049,0.00039154,39616.0,39605.0,0.26640514]
[1645844212251,0.37171678,39616.0,39605.0,0.26640514]
[1645844212454,0.21404818,39614.0,39605.0,0.26640514]
[1645844212849,0.21404818,39614.0,39604.0,0.26601348]
[1645844213115,0.21404818,39614.0,39605.0,0.00039166]
[1645844213314,0.21404818,39614.0,39605.0,0.26640514]
[1645844213814,0.21704818,39614.0,39605.0,0.26640514]
[1645844214017,0.21704818,39614.0,39605.0,0.26601348]
[1645844214215,0.21704818,39614.0,39605.0,0.26640514]
[1645844214816,0.003,39614.0,39606.0,0.37132524]
[1645844215021,0.00039154,39616.0,39605.0,0.26640514]
[1645844215217,0.5658241,39617.0,39604.0,0.63733872]
[1645844215417,0.00039155,39616.0,39605.0,0.00039166]
[1645844216519,0.49235153,39617.0,39605.0,0.26640514]
[1645844216750,0.00039155,39616.0,39605.0,0.26640514]
[1645844217554,0.21267801,39615.0,39607.0,0.21335899]
[1645844220351,0.26267801,39615.0,39607.0,0.21335899]
[1645844220600,0.26267801,39615.0,39606.0,0.21335899]
[1645844220601,0.21267801,39614.0,39606.0,0.21335899]
[1645844221002,0.19361075,39611.0,39605.0,0.21375065]
[1645844221200,0.19361075,39611.0,39605.0,0.21335899]
[1645844221400,0.19361075,39611.0,39605.0,0.21375065]
[1645844221801,0.19561075,39611.0,39605.0,0.21375065]
[1645844222502,0.18061075,39611.0,39605.0,0.21335899]
[1645844222708,0.28061075,39611.0,39605.0,0.21375064]
[1645844222903,0.27861075,39611.0,39605.0,0.21375064]
[1645844223704,0.27861075,39611.0,39602.0,0.26601348]
[1645844223705,0.28161075,39611.0,39604.0,0.21335899]
[1645844223904,0.28161075,39611.0,39605.0,0.00037812]
[1645844224758,0.28161075,39611.0,39603.0,0.21335899]
[1645844224955,0.27861075,39611.0,39605.0,0.00037812]
[1645844225756,0.28161075,39611.0,39605.0,0.00037812]
[1645844225956,0.28161075,39611.0,39604.0,0.21335899]
[1645844226156,0.28161075,39611.0,39605.0,0.00037812]
[1645844226957,0.27861075,39611.0,39605.0,0.00037812]
[1645844227157,0.27861075,39611.0,39604.0,0.21335899]
[1645844227358,0.27861075,39611.0,39605.0,0.00039165]
[1645844227759,0.28061075,39611.0,39605.0,0.00039165]
[1645844228403,0.28061075,39611.0,39603.0,0.21335899]
[1645844228604,0.28061075,39611.0,39599.0,0.33078]
[1645844228605,0.49328876,39611.0,39605.0,0.00039165]
[1645844228805,0.00030263,39603.0,39602.0,0.21335899]
[1645844229806,0.00230263,39603.0,39602.0,0.21335899]
[1645844231013,0.00030263,39603.0,39602.0,0.21335899]
[1645844231851,0.00230263,39603.0,39602.0,0.21335899]
[1645844233050,0.00030263,39603.0,39602.0,0.21335899]
[1645844233453,0.00030263,39603.0,39602.0,0.20835899]
[1645844233652,0.00230263,39603.0,39602.0,0.20835899]
[1645844234452,0.00230263,39603.0,39599.0,0.3207]
[1645844234453,0.00230263,39603.0,39599.0,0.58671348]
[1645844234653,0.00230263,39603.0,39601.0,0.00039168]
[1645844235160,0.00030263,39603.0,39601.0,0.00039168]
[1645844235606,0.00030263,39603.0,39594.0,0.63563634]
[1645844235813,0.0506,39602.0,39600.0,0.00039168]
[1645844236905,0.0506,39602.0,39594.0,0.26601348]
[1645844237107,0.0506,39602.0,39599.0,0.00039169]
[1645844237305,0.23002378,39601.0,39599.0,0.00039169]
[1645844238105,0.23002378,39601.0,39594.0,0.26601348]
[1645844238312,0.23002378,39601.0,39598.0,0.00039169]
[1645844239356,0.23002378,39601.0,39593.0,0.26601348]
[1645844239758,0.23102378,39601.0,39592.0,0.26601348]
[1645844239960,0.23102378,39601.0,39591.0,0.26611348]
[1645844240158,0.21863009,39595.0,39591.0,0.26611348]
[1645844240759,0.21863009,39595.0,39591.0,0.0001]
[1645844241657,0.21963009,39595.0,39591.0,0.0001]
[1645844243102,0.21863009,39595.0,39591.0,0.00049126]
[1645844243701,0.22063009,39595.0,39591.0,0.00049126]
[1645844244100,0.22063009,39595.0,39591.0,0.0001]
[1645844244300,0.22063009,39595.0,39591.0,0.00046452]
[1645844244501,0.21563009,39595.0,39591.0,0.00046452]
[1645844244900,0.21363009,39595.0,39591.0,0.00046452]
[1645844245301,0.21363009,39595.0,39591.0,0.0001]
[1645844245601,0.21363009,39595.0,39591.0,0.00046452]
[1645844245801,0.21563009,39595.0,39591.0,0.00046452]
[1645844246006,0.002,39595.0,39591.0,0.00046452]
[1645844246404,0.002,39595.0,39591.0,0.21340412]
[1645844246603,0.002,39595.0,39592.0,0.36962286]
[1645844246857,0.002,39595.0,39591.0,0.21376864]
[1645844247054,0.20687226,39601.0,39592.0,0.36962286]
[1645844247255,0.25687226,39601.0,39592.0,0.36962286]
[1645844247455,0.00030263,39603.0,39592.0,0.36962286]
[1645844247854,0.00030263,39603.0,39595.0,0.0003645]
[1645844248856,0.00030263,39603.0,39593.0,0.58292698]
[1645844249058,0.00030263,39603.0,39597.0,0.00036629]
[1645844250059,0.00030263,39603.0,39593.0,0.21330412]
[1645844250261,0.00030263,39603.0,39598.0,0.00036628]
[1645844250901,0.5,39602.0,39592.0,0.5797586]
[1645844251101,0.5,39602.0,39591.0,0.0001]
[1645844251702,0.5,39602.0,39591.0,0.0011]
[1645844251902,0.22078647,39600.0,39591.0,0.0011]
[1645844252904,0.1985897,39594.0,39591.0,0.0011]
[1645844253105,0.1985897,39594.0,39591.0,0.0001]
[1645844253704,0.001,39599.0,39591.0,0.0011]
[1645844254750,0.23155496,39597.0,39591.0,0.0011]
[1645844254950,0.23155496,39597.0,39591.0,0.0001]
[1645844255153,0.23192249,39597.0,39591.0,0.0001]
[1645844255853,0.23392249,39597.0,39591.0,0.0001]
[1645844256052,0.23355496,39597.0,39591.0,0.0001]
[1645844256252,0.00011951,39596.0,39591.0,0.0001]
[1645844256653,0.00011951,39596.0,39591.0,0.063265]
[1645844257255,0.23155496,39597.0,39591.0,0.063265]
[1645844257456,0.00011951,39595.0,39591.0,0.063265]
[1645844258308,0.00011951,39595.0,39592.0,0.36962286]
[1645844258509,0.002,39596.0,39595.0,6.69e-05]
[1645844258911,0.23879751,39602.0,39595.0,6.69e-05]
[1645844259114,0.28879751,39602.0,39595.0,6.69e-05]
[1645844262455,0.00011951,39600.0,39595.0,6.69e-05]
[1645844263355,0.28879751,39602.0,39595.0,6.69e-05]
[1645844263554,0.00039091,39599.0,39595.0,6.69e-05]
[1645844264459,0.124621,39604.0,39595.0,6.69e-05]
[1645844264657,0.124621,39604.0,39595.0,0.58272972]
[1645844264857,0.00036423,39599.0,39595.0,0.58272972]
[1645844265705,0.1151,39604.0,39595.0,0.58272972]
[1645844265902,0.00036423,39599.0,39595.0,0.58272972]
[1645844266101,0.00036423,39599.0,39595.0,0.21331734]
[1645844266703,0.16885466,39604.0,39595.0,0.21331734]
[1645844267102,0.16485466,39604.0,39595.0,0.21331734]
[1645844267502,0.11485466,39604.0,39595.0,0.21331734]
[1645844267902,0.11785466,39604.0,39595.0,0.21331734]
[1645844268505,0.21560631,39599.0,39595.0,0.21331734]
[1645844268803,0.21560631,39599.0,39596.0,0.21325044]
[1645844269004,0.21560631,39599.0,39595.0,0.21331734]
[1645844269657,0.11485466,39604.0,39595.0,0.21331734]
[1645844269858,0.004,39599.0,39595.0,0.21331734]
[1645844271060,0.00039089,39601.0,39595.0,0.21331734]
[1645844271662,0.34543093,39604.0,39595.0,0.21331734]
[1645844272066,0.00039089,39601.0,39596.0,0.21325044]
[1645844272263,0.00039089,39601.0,39595.0,0.21331734]
[1645844272662,0.00039089,39601.0,39596.0,0.21325044]
[1645844272863,0.28057627,39604.0,39596.0,0.21325044]
[1645844273110,0.00039089,39601.0,39596.0,0.21325044]
[1645844273913,0.00439089,39601.0,39596.0,0.21325044]
[1645844274114,0.004,39601.0,39596.0,0.21325044]
[1645844274315,0.00439089,39601.0,39596.0,0.21325044]
[1645844274514,0.00439089,39601.0,39597.0,0.21325044]
[1645844274915,0.00439089,39601.0,39596.0,0.21325044]
[1645844275215,0.00039089,39601.0,39597.0,0.21325044]
[1645844275416,0.28057627,39604.0,39597.0,0.21325044]
[1645844275615,0.00039089,39601.0,39597.0,0.21325044]
[1645844276616,0.28057627,39604.0,39598.0,0.21325044]
[1645844276859,0.0003909,39601.0,39598.0,0.21325044]
[1645844277259,0.0003909,39601.0,39597.0,0.21325044]
[1645844277654,0.28057627,39604.0,39597.0,0.21325044]
[1645844279256,0.0003907,39602.0,39597.0,0.21325044]
[1645844279656,0.0003907,39602.0,39598.0,0.21325044]
[1645844279860,0.0023907,39602.0,39598.0,0.21325044]
[1645844280058,0.002,39602.0,39598.0,0.21325044]
[1645844280260,0.00211897,39602.0,39598.0,0.21325044]
[1645844281107,0.00011897,39602.0,39598.0,0.21325044]
[1645844281309,0.18057627,39604.0,39598.0,0.21325044]
[1645844281708,0.0003904,39602.0,39598.0,0.21325044]
[1645844281908,0.0043904,39602.0,39598.0,0.21325044]
[1645844282608,0.004,39602.0,39598.0,0.21325044]
[1645844282808,0.00411897,39602.0,39598.0,0.21325044]
[1645844283207,0.00011897,39602.0,39598.0,0.21325044]
[1645844283709,0.18057627,39604.0,39598.0,0.21325044]
[1645844283909,0.00311897,39602.0,39598.0,0.21325044]
[1645844284967,0.003,39602.0,39598.0,0.21325044]
[1645844285164,0.00011897,39602.0,39598.0,0.21325044]
[1645844286164,0.23057627,39604.0,39598.0,0.21325044]
[1645844286366,0.0003901,39602.0,39598.0,0.21325044]
[1645844286766,0.0003901,39602.0,39597.0,0.21325044]
[1645844287165,0.0509901,39602.0,39597.0,0.21325044]
[1645844287369,0.0506,39602.0,39595.0,6.69e-05]
[1645844287569,0.00011897,39601.0,39595.0,6.69e-05]
[1645844287765,0.0506,39600.0,39595.0,6.69e-05]
[1645844289405,0.05011896,39601.0,39600.0,0.0768279]
[1645844289604,0.31598527,39601.0,39600.0,0.0768279]
[1645844289803,0.060225,39601.0,39600.0,0.0768279]
[1645844290003,0.32549131,39601.0,39600.0,0.0768279]
[1645844290604,0.060225,39601.0,39600.0,0.0768279]
[1645844290804,0.0506,39601.0,39600.0,0.0768279]
[1645844293857,0.0516,39601.0,39600.0,0.0768279]
[1645844295156,0.0506,39601.0,39600.0,0.0768279]
[1645844300160,0.10032795,39602.0,39600.0,0.0768279]
[1645844300566,0.05,39602.0,39600.0,0.0768279]
[1645844301362,0.00032795,39603.0,39600.0,0.0768279]
[1645844301760,0.31871545,39604.0,39600.0,0.0768279]
[1645844301961,0.002,39602.0,39600.0,0.0768279]
[1645844303309,0.00033426,39603.0,39600.0,0.0768279]
[1645844304111,0.31871545,39604.0,39600.0,0.0768279]
[1645844304511,0.00033426,39603.0,39600.0,0.0768279]
[1645844305311,0.31871545,39604.0,39600.0,0.0768279]
[1645844305515,0.0506,39603.0,39600.0,0.0768279]
[1645844305715,0.05093426,39603.0,39600.0,0.0768279]
[1645844306512,0.0506,39603.0,39600.0,0.0768279]
[1645844306763,0.05093334,39603.0,39600.0,0.0768279]
[1645844307867,0.0506,39603.0,39600.0,0.0768279]
[1645844308066,0.05093334,39603.0,39600.0,0.0768279]
[1645844308866,0.0506,39603.0,39600.0,0.0768279]
[1645844309067,0.36807466,39602.0,39600.0,0.0768279]
[1645844309567,0.63948523,39602.0,39600.0,0.0768279]
[1645844309768,0.36807466,39601.0,39600.0,0.0768279]
[1645844310169,0.41807466,39601.0,39600.0,0.0768279]
[1645844310813,0.46867466,39601.0,39600.0,0.0768279]
[1645844311609,1.23837466,39601.0,39600.0,0.0768279]
[1645844312109,1.40918523,39601.0,39600.0,0.0768279]
[1645844313813,0.7697,39599.0,39595.0,6.69e-05]
[1645844314012,0.7697,39597.0,39595.0,6.69e-05]
[1645844314261,1.23730524,39596.0,39595.0,6.69e-05]
[1645844314462,1.40811581,39596.0,39595.0,6.69e-05]
[1645844314660,1.62188281,39596.0,39595.0,6.69e-05]
[1645844315967,0.85318281,39596.0,39595.0,6.69e-05]
[1645844316364,0.68237224,39596.0,39595.0,6.69e-05]
[1645844316567,0.68170824,39596.0,39595.0,6.69e-05]
[1645844316766,0.314703,39596.0,39595.0,6.69e-05]
[1645844316966,0.68170824,39596.0,39595.0,6.69e-05]
[1645844317166,0.313703,39596.0,39595.0,6.69e-05]
[1645844318211,0.0506,39596.0,39595.0,6.69e-05]
[1645844318412,0.65961655,39601.0,39595.0,6.69e-05]